[Event "Titled Tuesday Blitz February 28 Early 2023"]
[White "Nur-Mukhametova, Alisa"]
[Black "Lesbekova, Assel"]
[WhiteFideId "54117739"]
[BlackFideId "13713248"]
[WhiteElo "2007"]
[BlackElo "1799"]
[Result "1-0"]
[Round "03"]
[TimeControl "180+2"]
[Date "2023.02.28"]
[WhiteClock "0:00:17"]
[BlackClock "0:01:22"]

1. Nf3 {[%clk 0:03:00]}  f5 {[%clk 0:02:57]} 2. g3 {[%clk 0:02:58]}  d6 {[%clk 0:02:57]} 3. d4 {[%clk 0:02:56]}  g6 {[%clk 0:02:57]} 4. Bg2 {[%clk 0:02:55]}  Bg7 {[%clk 0:02:58]} 5. O-O {[%clk 0:02:55]}  Nf6 {[%clk 0:02:58]} 6. c4 {[%clk 0:02:54]}  O-O {[%clk 0:02:58]} 7. Nc3 {[%clk 0:02:54]}  Nc6 {[%clk 0:02:56]} 8. d5 {[%clk 0:02:52]}  Ne5 {[%clk 0:02:54]} 9. Nxe5 {[%clk 0:02:51]}  dxe5 {[%clk 0:02:55]} 10. e4 {[%clk 0:02:51]}  f4 {[%clk 0:02:55]} 11. gxf4 {[%clk 0:02:23]}  exf4 {[%clk 0:02:56]} 12. Bxf4 {[%clk 0:02:15]}  Nxe4 {[%clk 0:02:55]} 13. Nxe4 {[%clk 0:02:15]}  Rxf4 {[%clk 0:02:55]} 14. Qd2 {[%clk 0:02:10]}  Bh6 {[%clk 0:02:53]} 15. Qc3 {[%clk 0:01:49]}  Qf8 {[%clk 0:02:45]} 16. Ng3 {[%clk 0:01:45]}  Bg4 {[%clk 0:02:42]} 17. Rae1 {[%clk 0:01:41]}  Bf3 {[%clk 0:02:36]} 18. Qe5 {[%clk 0:01:36]}  Bxg2 {[%clk 0:02:28]} 19. Kxg2 {[%clk 0:01:36]}  Re8 {[%clk 0:02:24]} 20. b3 {[%clk 0:01:31]}  Bg7 {[%clk 0:02:24]} 21. Qxc7 {[%clk 0:01:25]}  Bd4 {[%clk 0:02:24]} 22. Re2 {[%clk 0:01:18]}  h5 {[%clk 0:02:23]} 23. h3 {[%clk 0:01:06]}  h4 {[%clk 0:02:21]} 24. Ne4 {[%clk 0:01:06]}  Qf5 {[%clk 0:02:18]} 25. f3 {[%clk 0:00:57]}  Rf8 {[%clk 0:02:11]} 26. Qxe7 {[%clk 0:00:44]}  Rxf3 {[%clk 0:02:07]} 27. Qxf8+ {[%clk 0:00:43]}  Qxf8 {[%clk 0:01:59]} 28. Rxf3 {[%clk 0:00:43]}  Qh6 {[%clk 0:01:54]} 29. d6 {[%clk 0:00:40]}  g5 {[%clk 0:01:45]} 30. d7 {[%clk 0:00:39]}  Qb6 {[%clk 0:01:41]} 31. Nxg5 {[%clk 0:00:32]}  Bf6 {[%clk 0:01:29]} 32. Re8+ {[%clk 0:00:28]}  Kg7 {[%clk 0:01:28]} 33. Ne6+ {[%clk 0:00:19]}  Kh7 {[%clk 0:01:22]} 34. Rxf6 {[%clk 0:00:19]}  Qc6+ {[%clk 0:01:22]} 35. Rf3 {[%clk 0:00:17]} 1-0


[Site "https://www.chess.com"]

[Event "Titled Tuesday Blitz February 28 Early 2023"]
[White "Tarasova, Viktoriya"]
[Black "Ruge, Edison"]
[WhiteFideId "4175840"]
[BlackFideId "4401000"]
[WhiteElo "2182"]
[BlackElo "2175"]
[Result "1-0"]
[Round "03"]
[TimeControl "180+2"]
[Date "2023.02.28"]
[WhiteClock "0:01:43"]
[BlackClock "0:00:13"]

1. d4 {[%clk 0:02:56]}  Nf6 {[%clk 0:02:59]} 2. c4 {[%clk 0:02:56]}  g6 {[%clk 0:02:59]} 3. Nc3 {[%clk 0:02:55]}  Bg7 {[%clk 0:03:00]} 4. e4 {[%clk 0:02:55]}  d6 {[%clk 0:03:01]} 5. h3 {[%clk 0:02:56]}  c6 {[%clk 0:03:00]} 6. Be3 {[%clk 0:02:56]}  a6 {[%clk 0:03:01]} 7. Be2 {[%clk 0:02:54]}  h5 {[%clk 0:02:59]} 8. Nf3 {[%clk 0:02:52]}  b5 {[%clk 0:02:59]} 9. a3 {[%clk 0:02:51]}  Nbd7 {[%clk 0:02:52]} 10. Qc2 {[%clk 0:02:51]}  bxc4 {[%clk 0:02:39]} 11. Bxc4 {[%clk 0:02:49]}  d5 {[%clk 0:02:39]} 12. Bd3 {[%clk 0:02:39]}  O-O {[%clk 0:02:24]} 13. e5 {[%clk 0:02:36]}  Nh7 {[%clk 0:01:33]} 14. e6 {[%clk 0:02:29]}  Nb6 {[%clk 0:01:27]} 15. exf7+ {[%clk 0:02:26]}  Rxf7 {[%clk 0:01:27]} 16. Bxg6 {[%clk 0:02:24]}  Nf6 {[%clk 0:01:20]} 17. Bxf7+ {[%clk 0:02:21]}  Kxf7 {[%clk 0:01:17]} 18. Ne5+ {[%clk 0:02:21]}  Kg8 {[%clk 0:01:15]} 19. Nxc6 {[%clk 0:02:19]}  Qd6 {[%clk 0:01:15]} 20. Ne5 {[%clk 0:02:19]}  Be6 {[%clk 0:01:09]} 21. O-O {[%clk 0:02:16]}  Nc4 {[%clk 0:00:53]} 22. Bf4 {[%clk 0:02:10]}  Qb6 {[%clk 0:00:44]} 23. Nxc4 {[%clk 0:02:02]}  dxc4 {[%clk 0:00:42]} 24. Be5 {[%clk 0:01:58]}  Rf8 {[%clk 0:00:31]} 25. Rae1 {[%clk 0:01:54]}  Qc6 {[%clk 0:00:18]} 26. Re3 {[%clk 0:01:52]}  Nd5 {[%clk 0:00:15]} 27. Nxd5 {[%clk 0:01:51]}  Qxd5 {[%clk 0:00:13]} 28. Rg3 {[%clk 0:01:50]}  Rf7 {[%clk 0:00:13]} 29. Qg6 {[%clk 0:01:43]} 1-0


[Site "https://www.chess.com"]

[Event "Titled Tuesday Blitz February 28 Early 2023"]
[White "Kiseljova, Marya"]
[Black "Hoffmann, Asa"]
[WhiteFideId "4155009"]
[BlackFideId "2001470"]
[WhiteElo "1807"]
[BlackElo "2117"]
[Result "0-1"]
[Round "03"]
[TimeControl "180+2"]
[Date "2023.02.28"]
[WhiteClock "0:00:01"]
[BlackClock "0:00:23"]

1. d4 {[%clk 0:03:00]}  Nf6 {[%clk 0:02:56]} 2. c4 {[%clk 0:03:01]}  c5 {[%clk 0:02:56]} 3. d5 {[%clk 0:03:00]}  e5 {[%clk 0:02:56]} 4. Nc3 {[%clk 0:02:48]}  d6 {[%clk 0:02:55]} 5. g3 {[%clk 0:02:45]}  Be7 {[%clk 0:02:54]} 6. Bg2 {[%clk 0:02:45]}  O-O {[%clk 0:02:54]} 7. Nf3 {[%clk 0:02:45]}  Ne8 {[%clk 0:02:54]} 8. O-O {[%clk 0:02:41]}  f5 {[%clk 0:02:53]} 9. Nd2 {[%clk 0:02:36]}  e4 {[%clk 0:02:52]} 10. Re1 {[%clk 0:02:20]}  Bf6 {[%clk 0:02:51]} 11. Nf1 {[%clk 0:02:19]}  Nd7 {[%clk 0:02:50]} 12. Qc2 {[%clk 0:02:18]}  Ne5 {[%clk 0:02:49]} 13. f3 {[%clk 0:02:13]}  exf3 {[%clk 0:02:44]} 14. exf3 {[%clk 0:02:13]}  Nxc4 {[%clk 0:02:43]} 15. f4 {[%clk 0:02:00]}  Nb6 {[%clk 0:02:35]} 16. Ne3 {[%clk 0:01:51]}  g6 {[%clk 0:02:33]} 17. b3 {[%clk 0:01:48]}  Nc7 {[%clk 0:02:27]} 18. Bb2 {[%clk 0:01:44]}  Bd7 {[%clk 0:02:26]} 19. Nc4 {[%clk 0:01:37]}  Nxc4 {[%clk 0:02:23]} 20. bxc4 {[%clk 0:01:37]}  a6 {[%clk 0:02:18]} 21. a4 {[%clk 0:01:37]}  b6 {[%clk 0:02:13]} 22. Qb3 {[%clk 0:01:35]}  Rb8 {[%clk 0:02:12]} 23. Re2 {[%clk 0:01:32]}  Bd4+ {[%clk 0:02:11]} 24. Kh1 {[%clk 0:01:32]}  Qf6 {[%clk 0:02:11]} 25. Rae1 {[%clk 0:01:30]}  Rfe8 {[%clk 0:02:10]} 26. h3 {[%clk 0:01:18]}  g5 {[%clk 0:01:52]} 27. Rxe8+ {[%clk 0:01:08]}  Bxe8 {[%clk 0:01:45]} 28. fxg5 {[%clk 0:00:49]}  Qxg5 {[%clk 0:01:45]} 29. Kh2 {[%clk 0:00:45]}  Be5 {[%clk 0:01:30]} 30. Nd1 {[%clk 0:00:43]}  Bxb2 {[%clk 0:01:22]} 31. Qxb2 {[%clk 0:00:43]}  Bg6 {[%clk 0:01:14]} 32. h4 {[%clk 0:00:40]}  Qd8 {[%clk 0:01:10]} 33. Nf2 {[%clk 0:00:36]}  f4 {[%clk 0:01:07]} 34. Qc3 {[%clk 0:00:21]}  b5 {[%clk 0:01:04]} 35. cxb5 {[%clk 0:00:16]}  axb5 {[%clk 0:01:03]} 36. a5 {[%clk 0:00:15]}  b4 {[%clk 0:01:03]} 37. Qf3 {[%clk 0:00:14]}  fxg3+ {[%clk 0:01:01]} 38. Qxg3 {[%clk 0:00:15]}  Kh8 {[%clk 0:00:55]} 39. Ng4 {[%clk 0:00:15]}  b3 {[%clk 0:00:52]} 40. h5 {[%clk 0:00:12]}  Bxh5 {[%clk 0:00:47]} 41. Nh6 {[%clk 0:00:12]}  Qf6 {[%clk 0:00:42]} 42. Rf1 {[%clk 0:00:11]}  Qxh6 {[%clk 0:00:37]} 43. Qc3+ {[%clk 0:00:10]}  Qg7 {[%clk 0:00:35]} 44. Qh3 {[%clk 0:00:10]}  Bg6 {[%clk 0:00:34]} 45. Rg1 {[%clk 0:00:09]}  b2 {[%clk 0:00:34]} 46. Be4 {[%clk 0:00:09]}  Ne8 {[%clk 0:00:31]} 47. Rxg6 {[%clk 0:00:09]}  Qe5+ {[%clk 0:00:26]} 48. Rg3 {[%clk 0:00:07]}  Qxe4 {[%clk 0:00:24]} 49. Rg1 {[%clk 0:00:01]}  Qe5+ {[%clk 0:00:23]} 0-1


[Site "https://www.chess.com"]

[Event "Titled Tuesday Blitz February 28 Early 2023"]
[White "Vaglio Munoz, Jaime"]
[Black "lisjakzlatko1"]
[WhiteFideId "6500145"]
[WhiteElo "2199"]
[BlackElo "2159"]
[Result "1-0"]
[Round "03"]
[TimeControl "180+2"]
[Date "2023.02.28"]
[WhiteClock "0:01:27"]
[BlackClock "0:00:04"]

1. d4 {[%clk 0:03:00]}  d6 {[%clk 0:02:59]} 2. e4 {[%clk 0:02:58]}  Nf6 {[%clk 0:02:57]} 3. Nc3 {[%clk 0:02:57]}  c6 {[%clk 0:02:57]} 4. Bc4 {[%clk 0:02:56]}  Qa5 {[%clk 0:02:52]} 5. Bd2 {[%clk 0:02:53]}  Qb6 {[%clk 0:02:42]} 6. Nf3 {[%clk 0:02:50]}  Qxb2 {[%clk 0:02:32]} 7. e5 {[%clk 0:02:49]}  d5 {[%clk 0:02:28]} 8. Bb3 {[%clk 0:02:36]}  Ne4 {[%clk 0:02:13]} 9. Nxe4 {[%clk 0:02:30]}  dxe4 {[%clk 0:02:12]} 10. Ng5 {[%clk 0:02:30]}  e6 {[%clk 0:02:06]} 11. c3 {[%clk 0:02:25]}  Qa3 {[%clk 0:01:54]} 12. Nxe4 {[%clk 0:02:24]}  Be7 {[%clk 0:01:49]} 13. Qg4 {[%clk 0:02:22]}  g6 {[%clk 0:01:41]} 14. Bg5 {[%clk 0:02:19]}  h5 {[%clk 0:01:28]} 15. Qf4 {[%clk 0:02:18]}  Nd7 {[%clk 0:01:16]} 16. O-O {[%clk 0:02:08]}  b6 {[%clk 0:01:05]} 17. Rfe1 {[%clk 0:02:06]}  h4 {[%clk 0:00:38]} 18. Re3 {[%clk 0:01:58]}  Rh5 {[%clk 0:00:36]} 19. Rf3 {[%clk 0:01:53]}  Rxg5 {[%clk 0:00:29]} 20. Nxg5 {[%clk 0:01:47]}  Bxg5 {[%clk 0:00:22]} 21. Qxg5 {[%clk 0:01:46]}  Qe7 {[%clk 0:00:16]} 22. Qh6 {[%clk 0:01:43]}  Nf8 {[%clk 0:00:15]} 23. Re1 {[%clk 0:01:30]}  Bd7 {[%clk 0:00:13]} 24. c4 {[%clk 0:01:30]}  O-O-O {[%clk 0:00:13]} 25. a4 {[%clk 0:01:29]}  Be8 {[%clk 0:00:08]} 26. Qd2 {[%clk 0:01:28]}  c5 {[%clk 0:00:05]} 27. d5 {[%clk 0:01:26]}  exd5 {[%clk 0:00:04]} 28. cxd5 {[%clk 0:01:27]} 1-0


[Site "https://www.chess.com"]

[Event "Titled Tuesday Blitz February 28 Early 2023"]
[White "Kiseleva, Arina"]
[Black "Valle Maytin, Luis Enrique"]
[WhiteFideId "4164989"]
[BlackFideId "3503666"]
[WhiteElo "1756"]
[BlackElo "2225"]
[Result "1-0"]
[Round "03"]
[TimeControl "180+2"]
[Date "2023.02.28"]
[WhiteClock "0:00:05"]
[BlackClock "0:00:03"]

1. d4 {[%clk 0:03:00]}  Nf6 {[%clk 0:02:59]} 2. Nf3 {[%clk 0:03:00]}  e6 {[%clk 0:02:52]} 3. e3 {[%clk 0:03:00]}  d5 {[%clk 0:02:50]} 4. Bd3 {[%clk 0:02:59]}  b6 {[%clk 0:02:48]} 5. Nbd2 {[%clk 0:03:00]}  Bd6 {[%clk 0:02:49]} 6. b3 {[%clk 0:02:56]}  Bb7 {[%clk 0:02:48]} 7. Bb2 {[%clk 0:02:56]}  Nbd7 {[%clk 0:02:43]} 8. Ne5 {[%clk 0:02:44]}  Bxe5 {[%clk 0:02:22]} 9. dxe5 {[%clk 0:02:42]}  Ne4 {[%clk 0:02:23]} 10. O-O {[%clk 0:02:38]}  Nxd2 {[%clk 0:01:53]} 11. Qxd2 {[%clk 0:02:36]}  h5 {[%clk 0:01:44]} 12. f4 {[%clk 0:02:28]}  Qe7 {[%clk 0:01:20]} 13. a4 {[%clk 0:02:23]}  Rg8 {[%clk 0:00:37]} 14. a5 {[%clk 0:02:11]}  a6 {[%clk 0:00:20]} 15. axb6 {[%clk 0:02:06]}  cxb6 {[%clk 0:00:21]} 16. Ba3 {[%clk 0:01:36]}  Qh4 {[%clk 0:00:21]} 17. Bd6 {[%clk 0:01:15]}  Qg4 {[%clk 0:00:10]} 18. Rf3 {[%clk 0:00:59]}  h4 {[%clk 0:00:07]} 19. f5 {[%clk 0:00:51]}  d4 {[%clk 0:00:08]} 20. Rf4 {[%clk 0:00:49]}  dxe3 {[%clk 0:00:06]} 21. Rxg4 {[%clk 0:00:37]}  exd2 {[%clk 0:00:06]} 22. fxe6 {[%clk 0:00:35]}  fxe6 {[%clk 0:00:06]} 23. Bg6+ {[%clk 0:00:35]}  Kd8 {[%clk 0:00:05]} 24. Rd1 {[%clk 0:00:35]}  Bd5 {[%clk 0:00:03]} 25. c4 {[%clk 0:00:33]}  Bc6 {[%clk 0:00:01]} 26. Rxd2 {[%clk 0:00:34]}  Kc8 {[%clk 0:00:01]} 27. Rxh4 {[%clk 0:00:32]}  Kb7 {[%clk 0:00:02]} 28. Bb4 {[%clk 0:00:29]}  Rh8 {[%clk 0:00:01]} 29. Rf4 {[%clk 0:00:16]}  a5 {[%clk 0:00:01]} 30. Bc3 {[%clk 0:00:15]}  Raf8 {[%clk 0:00:02]} 31. Rdf2 {[%clk 0:00:14]}  Rxf4 {[%clk 0:00:02]} 32. Rxf4 {[%clk 0:00:15]}  Kc7 {[%clk 0:00:03]} 33. Rf7 {[%clk 0:00:13]}  Rg8 {[%clk 0:00:03]} 34. h4 {[%clk 0:00:12]}  Kd8 {[%clk 0:00:03]} 35. h5 {[%clk 0:00:12]}  Kc8 {[%clk 0:00:02]} 36. g4 {[%clk 0:00:12]}  Nc5 {[%clk 0:00:02]} 37. Bc2 {[%clk 0:00:09]}  Be8 {[%clk 0:00:01]} 38. Ra7 {[%clk 0:00:07]}  Kb8 {[%clk 0:00:02]} 39. Re7 {[%clk 0:00:06]}  Bc6 {[%clk 0:00:02]} 40. Bd4 {[%clk 0:00:06]}  Nd7 {[%clk 0:00:01]} 41. Rxe6 {[%clk 0:00:05]}  Kc7 {[%clk 0:00:02]} 42. Re7 {[%clk 0:00:05]}  Kd8 {[%clk 0:00:02]} 43. Rf7 {[%clk 0:00:05]}  Ke8 {[%clk 0:00:02]} 44. e6 {[%clk 0:00:06]}  Nb8 {[%clk 0:00:01]} 45. Rc7 {[%clk 0:00:06]}  Kd8 {[%clk 0:00:01]} 46. Ra7 {[%clk 0:00:05]}  Kc8 {[%clk 0:00:02]} 47. e7 {[%clk 0:00:05]}  Nd7 {[%clk 0:00:02]} 48. Bf5 {[%clk 0:00:06]}  Re8 {[%clk 0:00:01]} 49. Ra8+ {[%clk 0:00:06]}  Bxa8 {[%clk 0:00:01]} 50. c5 {[%clk 0:00:05]}  Rxe7 {[%clk 0:00:02]} 51. cxb6 {[%clk 0:00:04]}  Bb7 {[%clk 0:00:03]} 52. Kf2 {[%clk 0:00:04]}  Rf7 {[%clk 0:00:03]} 53. Kg3 {[%clk 0:00:04]}  Kd8 {[%clk 0:00:03]} 54. Kf4 {[%clk 0:00:04]}  Nf6 {[%clk 0:00:03]} 55. g5 {[%clk 0:00:04]}  Nd5+ {[%clk 0:00:03]} 56. Kg4 {[%clk 0:00:04]}  Rf6 {[%clk 0:00:02]} 57. gxf6 {[%clk 0:00:04]}  gxf6 {[%clk 0:00:03]} 58. h6 {[%clk 0:00:04]}  Ne7 {[%clk 0:00:02]} 59. h7 {[%clk 0:00:05]}  Nxf5 {[%clk 0:00:03]} 60. Kxf5 {[%clk 0:00:05]}  Be4+ {[%clk 0:00:03]} 61. Kxe4 {[%clk 0:00:05]} 1-0


[Site "https://www.chess.com"]

[Event "Titled Tuesday Blitz February 28 Early 2023"]
[White "Tarnowska, Aleksandra"]
[Black "Andreev, Konstantin"]
[WhiteFideId "1180967"]
[BlackFideId "24239305"]
[WhiteElo "1776"]
[BlackElo "2106"]
[Result "0-1"]
[Round "03"]
[TimeControl "180+2"]
[Date "2023.02.28"]
[WhiteClock "0:00:05"]
[BlackClock "0:01:28"]

1. e4 {[%clk 0:02:57]}  c5 {[%clk 0:02:59]} 2. Nf3 {[%clk 0:02:57]}  e6 {[%clk 0:02:59]} 3. d4 {[%clk 0:02:54]}  cxd4 {[%clk 0:03:00]} 4. Nxd4 {[%clk 0:02:55]}  Nc6 {[%clk 0:03:01]} 5. Nb3 {[%clk 0:02:55]}  a6 {[%clk 0:02:59]} 6. Be2 {[%clk 0:02:51]}  Nf6 {[%clk 0:02:59]} 7. Bf3 {[%clk 0:02:45]}  b5 {[%clk 0:02:57]} 8. O-O {[%clk 0:02:44]}  Qc7 {[%clk 0:02:55]} 9. Nc3 {[%clk 0:02:26]}  Bb7 {[%clk 0:02:53]} 10. Re1 {[%clk 0:02:01]}  Ne5 {[%clk 0:02:47]} 11. Bf4 {[%clk 0:01:21]}  d6 {[%clk 0:02:38]} 12. Qe2 {[%clk 0:00:57]}  Be7 {[%clk 0:02:36]} 13. Rad1 {[%clk 0:00:56]}  O-O {[%clk 0:02:35]} 14. a3 {[%clk 0:00:27]}  Nc4 {[%clk 0:02:32]} 15. e5 {[%clk 0:00:24]}  dxe5 {[%clk 0:02:31]} 16. Bxe5 {[%clk 0:00:11]}  Qc8 {[%clk 0:02:29]} 17. Bxb7 {[%clk 0:00:10]}  Qxb7 {[%clk 0:02:29]} 18. Rb1 {[%clk 0:00:08]}  Rac8 {[%clk 0:02:28]} 19. Nd2 {[%clk 0:00:06]}  Nxe5 {[%clk 0:02:24]} 20. Qxe5 {[%clk 0:00:05]}  Rfd8 {[%clk 0:02:25]} 21. Nf3 {[%clk 0:00:05]}  Nd5 {[%clk 0:02:21]} 22. Nxd5 {[%clk 0:00:05]}  Rxd5 {[%clk 0:02:21]} 23. Qe4 {[%clk 0:00:05]}  Qd7 {[%clk 0:02:16]} 24. c3 {[%clk 0:00:05]}  Bc5 {[%clk 0:02:14]} 25. Ne5 {[%clk 0:00:05]}  Qd6 {[%clk 0:02:14]} 26. Nf3 {[%clk 0:00:05]}  Rd8 {[%clk 0:02:12]} 27. h3 {[%clk 0:00:05]}  Bb6 {[%clk 0:02:11]} 28. Qe2 {[%clk 0:00:05]}  h6 {[%clk 0:02:11]} 29. Qe4 {[%clk 0:00:05]}  Qc5 {[%clk 0:02:07]} 30. Qe2 {[%clk 0:00:05]}  a5 {[%clk 0:02:03]} 31. Nd4 {[%clk 0:00:05]}  a4 {[%clk 0:02:01]} 32. Rbd1 {[%clk 0:00:05]}  e5 {[%clk 0:01:54]} 33. Nf3 {[%clk 0:00:05]}  Rxd1 {[%clk 0:01:54]} 34. Rxd1 {[%clk 0:00:06]}  Rxd1+ {[%clk 0:01:54]} 35. Qxd1 {[%clk 0:00:07]}  Qxf2+ {[%clk 0:01:54]} 36. Kh1 {[%clk 0:00:07]}  e4 {[%clk 0:01:53]} 37. Nh2 {[%clk 0:00:06]}  e3 {[%clk 0:01:52]} 38. Ng4 {[%clk 0:00:07]}  Qxb2 {[%clk 0:01:45]} 39. Qe1 {[%clk 0:00:07]}  e2 {[%clk 0:01:44]} 40. Kh2 {[%clk 0:00:06]}  Bc7+ {[%clk 0:01:40]} 41. g3 {[%clk 0:00:06]}  Qc2 {[%clk 0:01:41]} 42. Nf2 {[%clk 0:00:06]}  Bb6 {[%clk 0:01:40]} 43. Kg2 {[%clk 0:00:07]}  Qa2 {[%clk 0:01:32]} 44. g4 {[%clk 0:00:06]}  Qd5+ {[%clk 0:01:29]} 45. Kg1 {[%clk 0:00:06]}  Qf3 {[%clk 0:01:28]} 46. Kh2 {[%clk 0:00:05]}  Qxf2+ {[%clk 0:01:27]} 47. Qxf2 {[%clk 0:00:05]}  Bxf2 {[%clk 0:01:28]} 0-1


[Site "https://www.chess.com"]

[Event "Titled Tuesday Blitz February 28 Early 2023"]
[White "Vasques, Antonio Pedro Freixial"]
[Black "Sailer, Mike"]
[WhiteFideId "1908332"]
[BlackFideId "2012901"]
[WhiteElo "2212"]
[BlackElo "2109"]
[Result "0-1"]
[Round "03"]
[TimeControl "180+2"]
[Date "2023.02.28"]
[WhiteClock "0:00:13"]
[BlackClock "0:00:09"]

1. Nf3 {[%clk 0:02:20]}  d5 {[%clk 0:02:58]} 2. g3 {[%clk 0:02:19]}  Nf6 {[%clk 0:02:58]} 3. Bg2 {[%clk 0:02:19]}  Bf5 {[%clk 0:02:59]} 4. O-O {[%clk 0:02:18]}  e6 {[%clk 0:02:59]} 5. c4 {[%clk 0:02:19]}  c6 {[%clk 0:02:59]} 6. d3 {[%clk 0:02:19]}  Be7 {[%clk 0:02:58]} 7. Nc3 {[%clk 0:02:20]}  O-O {[%clk 0:02:59]} 8. Be3 {[%clk 0:02:21]}  Nbd7 {[%clk 0:02:59]} 9. Qb3 {[%clk 0:02:19]}  b6 {[%clk 0:02:43]} 10. Nd4 {[%clk 0:02:16]}  Nc5 {[%clk 0:02:25]} 11. Qd1 {[%clk 0:02:12]}  Rc8 {[%clk 0:02:17]} 12. Nxf5 {[%clk 0:02:09]}  exf5 {[%clk 0:02:17]} 13. cxd5 {[%clk 0:02:04]}  Nxd5 {[%clk 0:02:07]} 14. Nxd5 {[%clk 0:02:01]}  cxd5 {[%clk 0:02:07]} 15. b4 {[%clk 0:02:01]}  Ne6 {[%clk 0:02:07]} 16. Qb3 {[%clk 0:02:00]}  d4 {[%clk 0:01:50]} 17. Bd2 {[%clk 0:01:59]}  Qd6 {[%clk 0:01:46]} 18. Rfc1 {[%clk 0:01:52]}  f4 {[%clk 0:01:46]} 19. Rc4 {[%clk 0:01:23]}  fxg3 {[%clk 0:01:42]} 20. hxg3 {[%clk 0:01:21]}  Rxc4 {[%clk 0:01:39]} 21. Qxc4 {[%clk 0:01:19]}  Kh8 {[%clk 0:01:30]} 22. Rc1 {[%clk 0:01:09]}  f5 {[%clk 0:01:22]} 23. Bd5 {[%clk 0:00:54]}  Ng5 {[%clk 0:01:22]} 24. Qxd4 {[%clk 0:00:49]}  Bf6 {[%clk 0:00:57]} 25. Qc4 {[%clk 0:00:44]}  h6 {[%clk 0:00:53]} 26. Bxg5 {[%clk 0:00:37]}  Bxg5 {[%clk 0:00:45]} 27. f4 {[%clk 0:00:38]}  Be7 {[%clk 0:00:38]} 28. a3 {[%clk 0:00:36]}  Bf6 {[%clk 0:00:38]} 29. Bf3 {[%clk 0:00:20]}  Bb2 {[%clk 0:00:32]} 30. Qc6 {[%clk 0:00:15]}  Qd4+ {[%clk 0:00:29]} 31. Kg2 {[%clk 0:00:15]}  Bxc1 {[%clk 0:00:27]} 32. Qxc1 {[%clk 0:00:16]}  Re8 {[%clk 0:00:25]} 33. Qc6 {[%clk 0:00:14]}  Qe3 {[%clk 0:00:20]} 34. Qg6 {[%clk 0:00:14]}  Rc8 {[%clk 0:00:13]} 35. Qxf5 {[%clk 0:00:13]}  Qe8 {[%clk 0:00:08]} 36. Be4 {[%clk 0:00:13]}  Kg8 {[%clk 0:00:08]} 37. Qh7+ {[%clk 0:00:12]}  Kf8 {[%clk 0:00:08]} 38. Qh8+ {[%clk 0:00:13]}  Kf7 {[%clk 0:00:09]} 39. Qxg7+ {[%clk 0:00:13]}  Kxg7 {[%clk 0:00:09]} 0-1


[Site "https://www.chess.com"]

[Event "Titled Tuesday Blitz February 28 Early 2023"]
[White "Mushini Ajay"]
[Black "Fabris, Alberto"]
[WhiteFideId "35066188"]
[BlackFideId "801348"]
[WhiteElo "2145"]
[BlackElo "2115"]
[Result "1/2-1/2"]
[Round "03"]
[TimeControl "180+2"]
[Date "2023.02.28"]
[WhiteClock "0:00:10"]
[BlackClock "0:00:33"]

1. e4 {[%clk 0:03:00]}  c5 {[%clk 0:02:59]} 2. d4 {[%clk 0:03:00]}  cxd4 {[%clk 0:02:58]} 3. c3 {[%clk 0:03:01]}  d3 {[%clk 0:02:58]} 4. Bxd3 {[%clk 0:03:01]}  g6 {[%clk 0:02:58]} 5. c4 {[%clk 0:03:01]}  Bg7 {[%clk 0:02:58]} 6. Nc3 {[%clk 0:03:02]}  Nc6 {[%clk 0:02:56]} 7. Nf3 {[%clk 0:03:03]}  d6 {[%clk 0:02:55]} 8. h3 {[%clk 0:03:00]}  Nf6 {[%clk 0:02:55]} 9. O-O {[%clk 0:03:00]}  O-O {[%clk 0:02:55]} 10. Be3 {[%clk 0:02:57]}  Na5 {[%clk 0:02:48]} 11. Rc1 {[%clk 0:02:56]}  Bd7 {[%clk 0:02:44]} 12. b4 {[%clk 0:02:43]}  Nc6 {[%clk 0:02:42]} 13. a3 {[%clk 0:02:41]}  Rc8 {[%clk 0:02:34]} 14. Nd5 {[%clk 0:02:40]}  b6 {[%clk 0:02:26]} 15. Re1 {[%clk 0:02:34]}  Nxd5 {[%clk 0:02:24]} 16. exd5 {[%clk 0:02:34]}  Ne5 {[%clk 0:02:24]} 17. Nxe5 {[%clk 0:02:34]}  Bxe5 {[%clk 0:02:23]} 18. Bh6 {[%clk 0:02:28]}  Re8 {[%clk 0:02:20]} 19. h4 {[%clk 0:02:21]}  Qc7 {[%clk 0:02:16]} 20. h5 {[%clk 0:02:20]}  Bg7 {[%clk 0:02:05]} 21. Bxg7 {[%clk 0:02:18]}  Kxg7 {[%clk 0:02:05]} 22. Qf3 {[%clk 0:02:16]}  e5 {[%clk 0:01:40]} 23. dxe6 {[%clk 0:01:47]}  Bxe6 {[%clk 0:01:38]} 24. Qf4 {[%clk 0:01:38]}  Qe7 {[%clk 0:01:37]} 25. Re3 {[%clk 0:01:23]}  Kg8 {[%clk 0:01:28]} 26. Rce1 {[%clk 0:01:21]}  Qf8 {[%clk 0:01:15]} 27. hxg6 {[%clk 0:01:12]}  hxg6 {[%clk 0:01:15]} 28. Bxg6 {[%clk 0:00:46]}  fxg6 {[%clk 0:01:14]} 29. Qxf8+ {[%clk 0:00:45]}  Kxf8 {[%clk 0:01:13]} 30. Rxe6 {[%clk 0:00:44]}  Rxe6 {[%clk 0:01:14]} 31. Rxe6 {[%clk 0:00:45]}  Rxc4 {[%clk 0:01:09]} 32. Rxd6 {[%clk 0:00:46]}  Rc3 {[%clk 0:00:54]} 33. Rxg6 {[%clk 0:00:42]}  Rxa3 {[%clk 0:00:53]} 34. b5 {[%clk 0:00:35]}  Kf7 {[%clk 0:00:50]} 35. Rg5 {[%clk 0:00:34]}  a5 {[%clk 0:00:46]} 36. bxa6 {[%clk 0:00:28]}  Rxa6 {[%clk 0:00:47]} 37. Rb5 {[%clk 0:00:19]}  Ke6 {[%clk 0:00:47]} 38. f4 {[%clk 0:00:19]}  Kd6 {[%clk 0:00:47]} 39. Kf2 {[%clk 0:00:16]}  Kc6 {[%clk 0:00:47]} 40. Re5 {[%clk 0:00:16]}  Ra4 {[%clk 0:00:41]} 41. Kf3 {[%clk 0:00:15]}  b5 {[%clk 0:00:40]} 42. f5 {[%clk 0:00:14]}  b4 {[%clk 0:00:40]} 43. f6 {[%clk 0:00:14]}  Ra7 {[%clk 0:00:38]} 44. Re7 {[%clk 0:00:10]}  Rxe7 {[%clk 0:00:32]} 45. fxe7 {[%clk 0:00:09]}  Kd7 {[%clk 0:00:32]} 46. Ke4 {[%clk 0:00:10]}  Kxe7 {[%clk 0:00:32]} 47. Kd4 {[%clk 0:00:10]}  Kf6 {[%clk 0:00:32]} 48. Kc4 {[%clk 0:00:10]}  Kg5 {[%clk 0:00:33]} 49. Kxb4 {[%clk 0:00:11]}  Kg4 {[%clk 0:00:33]} 50. g3 {[%clk 0:00:10]}  Kxg3 {[%clk 0:00:33]} 1/2-1/2


[Site "https://www.chess.com"]